fUSD/lending_fUSD_20240412
["ID","MTS","AMOUNT","RATE_DAILY","PERIOD"]
[322341783,1712956580351,-500.0,0.00048493,31]
[322341784,1712956580376,-1572.03,0.00048493,31]
[322341785,1712956580403,-3312.21,0.00048493,31]
[322341786,1712956580428,-500.0,0.00048493,31]
[322341787,1712956580452,-971.73,0.00048493,31]
[322341788,1712956580478,-1402.91,0.00048493,31]
[322341789,1712956580502,-533.79,0.00048493,31]
[322341790,1712956580527,-500.0,0.00048493,31]
[322341791,1712956580551,-500.0,0.00048493,31]
[322341792,1712956580615,-500.0,0.00048493,31]
[322341793,1712956580639,-500.0,0.00048493,31]
[322341794,1712956580664,-500.0,0.00048493,31]
[322341795,1712956580689,-546.83,0.00048493,31]
[322341796,1712956580713,-770.12,0.00048493,31]
[322341797,1712956580738,-500.0,0.00048493,31]
[322341798,1712956580764,-500.0,0.00048493,31]
[322341799,1712956580796,-500.0,0.00048493,31]
[322341800,1712956580822,-500.0,0.00048493,31]
[322341801,1712956580848,-6667.16,0.00048493,31]
[322341802,1712956580872,-562.65,0.00048493,31]
[322341803,1712956580896,-592.68,0.00048493,31]
[322341804,1712956580921,-2128.49,0.00048493,31]
[322341805,1712956580947,-576.79,0.00048493,31]
[322341806,1712956580972,-2572.2,0.00048493,31]
[322341807,1712956580998,-500.0,0.00048493,31]
[322341808,1712956581023,-500.0,0.00048493,31]
[322341809,1712956581048,-500.0,0.00048493,31]
[322341810,1712956581072,-500.0,0.00048493,31]
[322341811,1712956581098,-500.0,0.00048493,31]
[322341812,1712956581123,-789.07,0.00048493,31]
[322341813,1712956581153,-500.0,0.00048493,31]
[322341814,1712956581178,-940.58,0.00048493,31]
[322341815,1712956581208,-1810.71,0.00048493,31]
[322341816,1712956581234,-1488.79,0.00048493,31]
[322341817,1712956581265,-500.0,0.00048493,31]
[322341818,1712956581290,-3983.01,0.00048493,31]
[322341819,1712956581314,-500.0,0.00048493,31]
[322341820,1712956581339,-627.13,0.00048493,31]
[322341821,1712956581365,-1220.51,0.00048493,31]
[322341822,1712956581389,-500.0,0.00048493,31]
[322341823,1712956581415,-500.0,0.00048493,31]
[322341824,1712956581439,-976.12,0.00048493,31]
[322341825,1712956581465,-970.66,0.00048493,31]
[322341826,1712956581492,-1553.59,0.00048493,31]
[322341827,1712956581517,-500.0,0.00048493,31]
[322341828,1712956581541,-2065.52,0.00048493,31]
[322341829,1712956581566,-500.0,0.00048493,31]
[322341830,1712956581592,-500.0,0.00048493,31]
[322341831,1712956581617,-500.0,0.00048493,31]
[322341832,1712956581642,-1215.24,0.00048493,31]
[322341833,1712956581666,-500.0,0.00048493,31]
[322341834,1712956581692,-1686.35,0.00048493,31]
[322341835,1712956581720,-3280.57,0.00048493,31]
[322341836,1712956581745,-228.72,0.00048493,31]
[322341837,1712956581769,-667.3,0.00048493,31]
[322341838,1712956581806,-500.0,0.00048493,31]
[322341839,1712956581832,-601.21,0.00048493,31]
[322341840,1712956581857,-500.0,0.00048493,31]
[322341841,1712956581883,-500.0,0.00048493,31]
[322341842,1712956581909,-500.0,0.00048493,31]
[322341843,1712956581934,-846.97,0.00048493,31]
[322341844,1712956581960,-500.0,0.00048493,31]
[322341845,1712956581984,-500.0,0.00048493,31]
[322341846,1712956582008,-500.0,0.00048493,31]
[322341847,1712956582033,-363.62,0.00048493,31]
[322341848,1712956582057,-1495.44,0.00048493,31]
[322341849,1712956582082,-500.0,0.00048493,31]
[322341850,1712956582106,-500.0,0.00048493,31]
[322341851,1712956582131,-808.45,0.00048493,31]
[322341852,1712956582156,-935.04,0.00048493,31]
[322341853,1712956582182,-1846.15,0.00048493,31]
[322341854,1712956582209,-500.0,0.00048493,31]
[322341855,1712956582235,-1507.31,0.00048493,31]
[322341856,1712956582262,-1294.69,0.00048493,31]
[322341857,1712956582287,-2247.71,0.00048493,31]
[322341858,1712956582312,-500.0,0.00048493,31]
[322341859,1712956582338,-896.47,0.00048493,31]
[322341860,1712956582362,-1472.35,0.00048493,31]
[322341861,1712956582388,-580.22,0.00048493,31]
[322341862,1712956582415,-496.39,0.00048493,31]
[322341863,1712956582439,-2397.12,0.00048493,31]
[322341864,1712956582465,-880.42,0.00048493,31]
[322341865,1712956582492,-1322.27,0.00048493,31]
[322341866,1712956582519,-500.0,0.00048493,31]
[322341867,1712956582544,-543.71,0.00048493,31]
[322341868,1712956582568,-500.0,0.00048493,31]
[322341869,1712956582593,-1600.11,0.00048493,31]
[322341870,1712956582618,-527.08,0.00048493,31]
[322341871,1712956582643,-1007.86,0.00048493,31]
[322341872,1712956582667,-2299.87,0.00048493,31]
[322341873,1712956582692,-500.0,0.00048493,31]
[322341874,1712956582717,-3212.13,0.00048493,31]
[322341875,1712956582742,-500.0,0.00048493,31]
[322341876,1712956582768,-1236.5,0.00048493,31]
[322341877,1712956582793,-6534.43,0.00048493,31]
[322341878,1712956582825,-522.9,0.00048493,31]
[322341879,1712956582852,-500.0,0.00048493,31]
[322341880,1712956582876,-880.9,0.00048493,31]
[322341881,1712956582905,-1933.1,0.00048493,31]
[322341882,1712956582929,-500.0,0.00048493,31]
[322341883,1712956582954,-500.0,0.00048493,31]
[322341884,1712956582977,-500.0,0.00048493,31]
[322341885,1712956583001,-500.0,0.00048493,31]
[322341886,1712956583025,-500.0,0.00048493,31]
[322341887,1712956583049,-1845.09,0.00048493,31]
[322341888,1712956583076,-1985.47,0.00048493,31]
[322341889,1712956583101,-807.07,0.00048493,31]
[322341890,1712956583126,-1048.99,0.00048493,31]
[322341891,1712956583151,-500.0,0.00048493,31]
[322341892,1712956583177,-1348.38,0.00048493,31]
[322341893,1712956583205,-500.0,0.00048493,31]
[322341894,1712956583229,-905.59,0.00048493,31]
[322341895,1712956583257,-500.0,0.00048493,31]
[322341896,1712956583283,-3905.62,0.00048493,31]
[322341897,1712956583443,-500.0,0.00048493,31]
[322341898,1712956583470,-1017.18,0.00048493,31]
[322341899,1712956583498,-500.0,0.00048493,31]
[322341900,1712956583526,-1495.51,0.00048493,31]
[322341901,1712956583554,-500.0,0.00048493,31]
[322341902,1712956583580,-500.0,0.00048493,31]
[322341903,1712956583607,-500.0,0.00048493,31]
[322341904,1712956583633,-2186.21,0.00048493,31]
[322341905,1712956583659,-500.0,0.00048493,31]
[322341906,1712956583686,-987.63,0.00048493,31]
[322341907,1712956583712,-500.0,0.00048493,31]
[322341908,1712956583737,-500.0,0.00048493,31]
[322341909,1712956583762,-1423.81,0.00048493,31]
[322341910,1712956583790,-500.0,0.00048493,31]
[322341911,1712956583818,-500.0,0.00048493,31]
[322341912,1712956583845,-1543.83,0.00048493,31]
[322341913,1712956583872,-16891.89,0.00048493,31]
[322341914,1712956583898,-500.0,0.00048493,31]
[322341915,1712956583923,-500.0,0.00048493,31]
[322341916,1712956583949,-1727.76,0.00048493,31]
[322341917,1712956583976,-500.0,0.00048493,31]
[322341918,1712956584002,-1334.55,0.00048493,31]
[322341919,1712956584028,-3445.8,0.00048493,31]
[322341920,1712956584053,-3743.4,0.00048493,31]
[322341921,1712956584080,-500.0,0.00048493,31]
[322341922,1712956584104,-650.65,0.00048493,31]
[322341923,1712956584130,-156.66547669,0.00048518,30]
[322341924,1712956584156,-155.82703613,0.00048579,30]
[322341925,1712956584184,-154.52231468,0.00048628,30]
[322341926,1712956584211,-500.0,0.00048649,30]
[322341927,1712956584236,-900.0,0.00048649,30]
[322341928,1712956584260,-500.0,0.00048649,30]
[322341929,1712956584286,-156.24543451,0.00048652,30]
[322341930,1712956584312,-155.80738462,0.00048685,30]
[322341931,1712956584337,-163.22695696,0.0004875,30]
[322341932,1712956584363,-500.0,0.00048767,31]
[322341933,1712956584388,-500.0,0.00048767,31]
[322341934,1712956584412,-500.0,0.00048767,31]
[322341935,1712956584440,-500.0,0.00048767,31]
[322341936,1712956584468,-500.0,0.00048767,31]
[322341937,1712956584494,-500.0,0.00048767,31]
[322341938,1712956584520,-1511.53,0.00048767,31]
[322341939,1712956584545,-500.0,0.00048767,31]
[322341940,1712956584576,-2105.21,0.00048767,31]
[322341941,1712956584602,-500.0,0.00048767,31]
[322341942,1712956584630,-533.57,0.00048767,31]
[322341943,1712956584657,-1575.29,0.00048767,31]
[322341944,1712956584685,-3096.99,0.00048767,31]
[322341945,1712956584712,-500.0,0.00048767,31]
[322341946,1712956584738,-500.0,0.00048767,31]
[322341947,1712956584764,-500.0,0.00048767,31]
[322341948,1712956584791,-500.0,0.00048767,31]
[322341949,1712956584817,-500.0,0.00048767,31]
[322341950,1712956584843,-632.18,0.00048767,31]
[322341951,1712956584869,-895.36,0.00048767,31]
[322341952,1712956584894,-500.0,0.00048767,31]
[322341953,1712956584919,-941.44,0.00048767,31]
[322341954,1712956584945,-1111.5,0.00048767,31]
[322341955,1712956584972,-774.82,0.00048767,31]
[322341956,1712956585000,-8132.3,0.00048767,31]
[322341957,1712956585028,-500.0,0.00048767,31]
[322341958,1712956585054,-500.0,0.00048767,31]
[322341959,1712956585082,-750.39,0.00048767,31]
[322341960,1712956585108,-500.0,0.00048767,31]
[322341961,1712956585137,-1572.03,0.00048767,31]
[322341962,1712956585166,-3312.21,0.00048767,31]
[322341963,1712956585196,-500.0,0.00048767,31]
[322341964,1712956585226,-971.73,0.00048767,31]
[322341965,1712956585254,-1402.91,0.00048767,31]
[322341966,1712956585283,-533.79,0.00048767,31]
[322341967,1712956585309,-500.0,0.00048767,31]
[322341968,1712956585338,-500.0,0.00048767,31]
[322341969,1712956585368,-500.0,0.00048767,31]
[322341970,1712956585395,-500.0,0.00048767,31]
[322341971,1712956585425,-500.0,0.00048767,31]
[322341972,1712956585451,-546.83,0.00048767,31]
[322341973,1712956585477,-770.12,0.00048767,31]
[322341974,1712956585508,-500.0,0.00048767,31]
[322341975,1712956585535,-500.0,0.00048767,31]
[322341976,1712956585561,-500.0,0.00048767,31]
[322341977,1712956585595,-500.0,0.00048767,31]
[322341978,1712956585622,-6667.16,0.00048767,31]
[322341979,1712956585649,-562.65,0.00048767,31]
[322341980,1712956585678,-592.68,0.00048767,31]
[322341981,1712956585709,-2128.49,0.00048767,31]
[322341982,1712956585738,-576.79,0.00048767,31]
[322341983,1712956585768,-2572.2,0.00048767,31]
[322341984,1712956585798,-500.0,0.00048767,31]
[322341985,1712956585826,-500.0,0.00048767,31]
[322341986,1712956585853,-500.0,0.00048767,31]
[322341987,1712956586120,-500.0,0.00048767,31]
[322341988,1712956586147,-500.0,0.00048767,31]
[322341989,1712956586174,-789.07,0.00048767,31]
[322341990,1712956586200,-500.0,0.00048767,31]
[322341991,1712956586227,-940.58,0.00048767,31]
[322341992,1712956586254,-1810.71,0.00048767,31]
[322341993,1712956586280,-1488.79,0.00048767,31]
[322341994,1712956586306,-196.14,0.00048767,31]
[322341995,1712956586333,-3983.01,0.00048767,31]
[322341996,1712956586360,-500.0,0.00048767,31]
[322341997,1712956586387,-627.13,0.00048767,31]
[322341998,1712956586414,-1220.51,0.00048767,31]
[322341999,1712956586444,-500.0,0.00048767,31]
[322342000,1712956586471,-500.0,0.00048767,31]
[322342001,1712956586500,-976.12,0.00048767,31]
[322342002,1712956586528,-970.66,0.00048767,31]
[322342003,1712956586555,-1553.59,0.00048767,31]
[322342004,1712956586582,-500.0,0.00048767,31]
[322342005,1712956586609,-2065.52,0.00048767,31]
[322342006,1712956586636,-500.0,0.00048767,31]
[322342007,1712956586663,-500.0,0.00048767,31]
[322342008,1712956586689,-500.0,0.00048767,31]
[322342009,1712956586714,-1215.24,0.00048767,31]
[322342010,1712956586740,-500.0,0.00048767,31]
[322342011,1712956586766,-1686.35,0.00048767,31]
[322342012,1712956586792,-3280.57,0.00048767,31]
[322342013,1712956586819,-667.3,0.00048767,31]
[322342014,1712956586845,-500.0,0.00048767,31]
[322342015,1712956586871,-601.21,0.00048767,31]
[322342016,1712956586896,-500.0,0.00048767,31]
[322342017,1712956586922,-500.0,0.00048767,31]
[322342018,1712956586947,-500.0,0.00048767,31]
[322342019,1712956586973,-846.97,0.00048767,31]
[322342020,1712956587000,-500.0,0.00048767,31]
[322342021,1712956587026,-614.01,0.00048767,31]
[322342022,1712956587054,-500.0,0.00048767,31]
[322342023,1712956587092,-1495.44,0.00048767,31]
[322342024,1712956587122,-500.0,0.00048767,31]
[322342025,1712956587153,-500.0,0.00048767,31]
[322342026,1712956587184,-808.45,0.00048767,31]
[322342027,1712956587215,-935.04,0.00048767,31]
[322342028,1712956587245,-1846.15,0.00048767,31]
[322342029,1712956587274,-500.0,0.00048767,31]
[322342030,1712956587303,-1507.31,0.00048767,31]
[322342031,1712956587335,-1294.69,0.00048767,31]
[322342032,1712956587363,-500.0,0.00048767,31]
[322342033,1712956587390,-2247.71,0.00048767,31]
[322342034,1712956587419,-896.47,0.00048767,31]
[322342035,1712956587452,-1472.35,0.00048767,31]
[322342036,1712956587478,-580.22,0.00048767,31]
[322342037,1712956587505,-2397.12,0.00048767,31]
[322342038,1712956587531,-880.42,0.00048767,31]
[322342039,1712956587558,-1322.27,0.00048767,31]
[322342040,1712956587587,-500.0,0.00048767,31]
[322342041,1712956587615,-543.71,0.00048767,31]
[322342042,1712956587641,-500.0,0.00048767,31]
[322342043,1712956587667,-1600.11,0.00048767,31]
[322342044,1712956587694,-527.08,0.00048767,31]
[322342045,1712956587721,-1007.86,0.00048767,31]
[322342046,1712956587747,-2299.87,0.00048767,31]
[322342047,1712956587774,-500.0,0.00048767,31]
[322342048,1712956587802,-3212.13,0.00048767,31]
[322342049,1712956587830,-500.0,0.00048767,31]
[322342050,1712956587856,-1236.5,0.00048767,31]
[322342051,1712956587882,-6534.43,0.00048767,31]
[322342052,1712956587908,-522.9,0.00048767,31]
[322342053,1712956587935,-500.0,0.00048767,31]
[322342054,1712956587961,-880.9,0.00048767,31]
[322342055,1712956587988,-1933.1,0.00048767,31]
[322342056,1712956588014,-500.0,0.00048767,31]
[322342057,1712956588040,-500.0,0.00048767,31]
[322342058,1712956588112,-500.0,0.00048767,31]
[322342059,1712956588138,-500.0,0.00048767,31]
[322342060,1712956588164,-500.0,0.00048767,31]
[322342061,1712956588192,-1985.47,0.00048767,31]
[322342062,1712956588218,-1845.09,0.00048767,31]
[322342063,1712956588243,-807.07,0.00048767,31]
[322342064,1712956588269,-1048.99,0.00048767,31]
[322342065,1712956588296,-500.0,0.00048767,31]
[322342066,1712956588327,-1348.38,0.00048767,31]
[322342067,1712956588355,-500.0,0.00048767,31]
[322342068,1712956588382,-905.59,0.00048767,31]
[322342069,1712956588411,-3905.62,0.00048767,31]
[322342070,1712956588437,-500.0,0.00048767,31]
[322342071,1712956588466,-500.0,0.00048767,31]
[322342072,1712956588492,-1017.18,0.00048767,31]
[322342073,1712956588519,-500.0,0.00048767,31]
[322342074,1712956588545,-1495.51,0.00048767,31]
[322342075,1712956588572,-500.0,0.00048767,31]
[322342076,1712956588600,-500.0,0.00048767,31]
[322342077,1712956588625,-500.0,0.00048767,31]
[322342078,1712956588650,-2186.21,0.00048767,31]
[322342079,1712956588675,-453.59,0.00048767,31]
[322342080,1712956588704,-987.63,0.00048767,31]
[322342081,1712956588730,-500.0,0.00048767,31]
[322342082,1712956588757,-500.0,0.00048767,31]
[322342083,1712956588782,-1423.81,0.00048767,31]
[322342084,1712956588806,-500.0,0.00048767,31]
[322342085,1712956588833,-500.0,0.00048767,31]
[322342086,1712956588858,-1543.83,0.00048767,31]
[322342087,1712956588882,-16891.89,0.00048767,31]
[322342088,1712956588906,-500.0,0.00048767,31]
[322342089,1712956588929,-500.0,0.00048767,31]
[322342090,1712956588953,-1727.76,0.00048767,31]
[322342091,1712956588978,-500.0,0.00048767,31]
[322342092,1712956589002,-1334.55,0.00048767,31]
[322342093,1712956589027,-3445.8,0.00048767,31]
[322342094,1712956589051,-3743.4,0.00048767,31]
[322342095,1712956589075,-500.0,0.00048767,31]
[322342096,1712956589100,-650.65,0.00048767,31]
[322342097,1712956589125,-156.66547669,0.00048807,30]
[322342098,1712956589150,-155.82703617,0.0004881,30]
[322342099,1712956589174,-152.3820507,0.00048887,30]
[322342100,1712956589200,-152.84604098,0.000489,40]
[322342101,1712956589225,-535.0,0.00048904,30]
[322342102,1712956589249,-468.64054229,0.00048925,45]
[322342103,1712956589273,-2164.64525,0.00048937,30]
[322342104,1712956589296,-191.541576,0.00048937,30]
[322342105,1712956589321,-153.050741,0.00048937,30]
[322342106,1712956589344,-154.5223147,0.00048958,30]
[322342107,1712956589368,-500.0,0.00049041,31]
[322342108,1712956589392,-500.0,0.00049041,31]
[322342109,1712956589416,-500.0,0.00049041,31]
[322342110,1712956589442,-276.69377233,0.00049041,31]
[322342111,1712956589468,-500.0,0.00049041,31]
[322342112,1712956589494,-500.0,0.00049041,31]
[322342113,1712956589519,-1511.53,0.00049041,31]
[322342114,1712956589544,-500.0,0.00049041,31]
[322342115,1712956589572,-2105.21,0.00049041,31]
[322342116,1712956589598,-500.0,0.00049041,31]
[322342117,1712956589625,-533.57,0.00049041,31]
[322342118,1712956589653,-1575.29,0.00049041,31]
[322342119,1712956589683,-3096.99,0.00049041,31]
[322342120,1712956589712,-500.0,0.00049041,31]
[322342121,1712956589742,-500.0,0.00049041,31]
[322342122,1712956589767,-500.0,0.00049041,31]
[322342123,1712956589792,-508.29,0.00049041,31]
[322342124,1712956589819,-500.0,0.00049041,31]
[322342125,1712956589844,-632.18,0.00049041,31]
[322342126,1712956589869,-895.36,0.00049041,31]
[322342127,1712956589893,-500.0,0.00049041,31]
[322342128,1712956589920,-941.44,0.00049041,31]
[322342129,1712956589945,-1111.5,0.00049041,31]
[322342130,1712956589969,-774.82,0.00049041,31]
[322342131,1712956589995,-8132.3,0.00049041,31]
[322342132,1712956590020,-500.0,0.00049041,31]
[322342133,1712956590045,-500.0,0.00049041,31]
[322342134,1712956590074,-750.39,0.00049041,31]
[322342135,1712956590101,-500.0,0.00049041,31]
[322342136,1712956590129,-1572.03,0.00049041,31]
[322342137,1712956590155,-3312.21,0.00049041,31]
[322342138,1712956590180,-500.0,0.00049041,31]
[322342139,1712956590207,-971.73,0.00049041,31]
[322342140,1712956590233,-1402.91,0.00049041,31]
[322342141,1712956590258,-533.79,0.00049041,31]
[322342142,1712956590284,-500.0,0.00049041,31]
[322342143,1712956590309,-500.0,0.00049041,31]
[322342144,1712956590334,-500.0,0.00049041,31]
[322342145,1712956590359,-500.0,0.00049041,31]
[322342146,1712956590385,-500.0,0.00049041,31]
[322342147,1712956590412,-546.83,0.00049041,31]
[322342148,1712956590441,-770.12,0.00049041,31]
[322342149,1712956590467,-500.0,0.00049041,31]
[322342150,1712956590492,-500.0,0.00049041,31]
[322342151,1712956590517,-345.66,0.00049041,31]
[322342152,1712956590542,-500.0,0.00049041,31]
[322342153,1712956590571,-6667.16,0.00049041,31]
[322342154,1712956590595,-562.65,0.00049041,31]
[322342155,1712956590621,-592.68,0.00049041,31]
[322342156,1712956590646,-2128.49,0.00049041,31]
[322342157,1712956590670,-576.79,0.00049041,31]
[322342158,1712956590699,-2572.2,0.00049041,31]
[322342159,1712956590724,-500.0,0.00049041,31]
[322342160,1712956590749,-500.0,0.00049041,31]
[322342161,1712956590774,-500.0,0.00049041,31]
[322342162,1712956590798,-500.0,0.00049041,31]
[322342163,1712956590930,-500.0,0.00049041,31]
[322342164,1712956590956,-789.07,0.00049041,31]
[322342165,1712956590981,-940.58,0.00049041,31]
[322342166,1712956591006,-500.0,0.00049041,31]
[322342167,1712956591030,-1810.71,0.00049041,31]
[322342168,1712956591056,-1488.79,0.00049041,31]
[322342169,1712956591083,-3983.01,0.00049041,31]
[322342170,1712956591109,-500.0,0.00049041,31]
[322342171,1712956591134,-627.13,0.00049041,31]
[322342172,1712956591160,-1220.51,0.00049041,31]
[322342173,1712956591185,-500.0,0.00049041,31]
[322342174,1712956591210,-500.0,0.00049041,31]
[322342175,1712956591235,-976.12,0.00049041,31]
[322342176,1712956591259,-970.66,0.00049041,31]
[322342177,1712956591285,-1553.59,0.00049041,31]
[322342178,1712956591310,-500.0,0.00049041,31]
[322342179,1712956591337,-2065.52,0.00049041,31]
[322342180,1712956591362,-500.0,0.00049041,31]
[322342181,1712956591387,-500.0,0.00049041,31]
[322342182,1712956591413,-500.0,0.00049041,31]
[322342183,1712956591439,-1215.24,0.00049041,31]
[322342184,1712956591464,-500.0,0.00049041,31]
[322342185,1712956591488,-1686.35,0.00049041,31]
[322342186,1712956591514,-3280.57,0.00049041,31]
[322342187,1712956591540,-667.3,0.00049041,31]
[322342188,1712956591565,-500.0,0.00049041,31]
[322342189,1712956591592,-601.21,0.00049041,31]
[322342190,1712956591617,-500.0,0.00049041,31]
[322342191,1712956591642,-500.0,0.00049041,31]
[322342192,1712956591666,-500.0,0.00049041,31]
[322342193,1712956591691,-846.97,0.00049041,31]
[322342194,1712956591716,-500.0,0.00049041,31]
[322342195,1712956591741,-500.0,0.00049041,31]
[322342196,1712956591766,-1495.44,0.00049041,31]
[322342197,1712956591792,-500.0,0.00049041,31]
[322342198,1712956591817,-500.0,0.00049041,31]
[322342199,1712956591843,-808.45,0.00049041,31]
[322342200,1712956591868,-935.04,0.00049041,31]
[322342201,1712956591894,-1846.15,0.00049041,31]
[322342202,1712956591918,-1507.31,0.00049041,31]
[322342203,1712956591943,-386.35,0.00049041,31]
[322342204,1712956591967,-1294.69,0.00049041,31]
[322342205,1712956591992,-500.0,0.00049041,31]
[322342206,1712956592017,-2247.71,0.00049041,31]
[322342207,1712956592042,-896.47,0.00049041,31]
[322342208,1712956592070,-1472.35,0.00049041,31]
[322342209,1712956592095,-580.22,0.00049041,31]
[322342210,1712956592121,-2397.12,0.00049041,31]
[322342211,1712956592146,-880.42,0.00049041,31]
[322342212,1712956592171,-1322.27,0.00049041,31]
[322342213,1712956592197,-500.0,0.00049041,31]
[322342214,1712956592222,-543.71,0.00049041,31]
[322342215,1712956592247,-500.0,0.00049041,31]
[322342216,1712956592271,-1600.11,0.00049041,31]
[322342217,1712956592297,-527.08,0.00049041,31]
[322342218,1712956592323,-1007.86,0.00049041,31]
[322342219,1712956592350,-2299.87,0.00049041,31]
[322342220,1712956592377,-500.0,0.00049041,31]
[322342221,1712956592406,-3212.13,0.00049041,31]
[322342222,1712956592431,-463.99350398,0.00049041,31]
[322342223,1712956592460,-1236.5,0.00049041,31]
[322342224,1712956592485,-6534.43,0.00049041,31]
[322342225,1712956592512,-522.9,0.00049041,31]
[322342226,1712956592539,-880.9,0.00049041,31]
[322342227,1712956592566,-500.0,0.00049041,31]
[322342228,1712956592593,-1933.1,0.00049041,31]
[322342229,1712956592620,-500.0,0.00049041,31]
[322342230,1712956592645,-500.0,0.00049041,31]
[322342231,1712956592670,-500.0,0.00049041,31]
[322342232,1712956592698,-349.65,0.00049041,31]
[322342233,1712956592724,-500.0,0.00049041,31]
[322342234,1712956592752,-1985.47,0.00049041,31]
[322342235,1712956592776,-1845.09,0.00049041,31]
[322342236,1712956592802,-807.07,0.00049041,31]
[322342237,1712956592826,-1048.99,0.00049041,31]
[322342238,1712956592852,-500.0,0.00049041,31]
[322342239,1712956592876,-1348.38,0.00049041,31]
[322342240,1712956592901,-500.0,0.00049041,31]
[322342241,1712956592925,-905.59,0.00049041,31]
[322342242,1712956592950,-3905.62,0.00049041,31]
[322342243,1712956592976,-500.0,0.00049041,31]
[322342244,1712956593001,-500.0,0.00049041,31]
[322342245,1712956593027,-1017.18,0.00049041,31]
[322342246,1712956593051,-500.0,0.00049041,31]
[322342247,1712956593077,-1495.51,0.00049041,31]
[322342248,1712956593102,-500.0,0.00049041,31]
[322342249,1712956593130,-500.0,0.00049041,31]
[322342250,1712956593158,-500.0,0.00049041,31]
[322342251,1712956593187,-2186.21,0.00049041,31]
[322342252,1712956593441,-987.63,0.00049041,31]
[322342253,1712956593470,-500.0,0.00049041,31]
[322342254,1712956593499,-500.0,0.00049041,31]
[322342255,1712956593527,-1423.81,0.00049041,31]
[322342256,1712956593553,-500.0,0.00049041,31]
[322342257,1712956593580,-500.0,0.00049041,31]
[322342258,1712956593608,-1543.83,0.00049041,31]
[322342259,1712956593635,-16891.89,0.00049041,31]
[322342260,1712956593663,-500.0,0.00049041,31]
[322342261,1712956593690,-500.0,0.00049041,31]
[322342262,1712956593718,-1727.76,0.00049041,31]
[322342263,1712956593744,-500.0,0.00049041,31]
[322342264,1712956593771,-1334.55,0.00049041,31]
[322342265,1712956593798,-3445.8,0.00049041,31]
[322342266,1712956593825,-3743.4,0.00049041,31]
[322342267,1712956593852,-538.36901586,0.00049041,31]
[322342268,1712956593878,-650.65,0.00049041,31]
[322342269,1712956593903,-150.0,0.00049067,60]
[322342270,1712956593931,-468.64054229,0.00049184,45]
[322342271,1712956593957,-500.0,0.00049197,30]
[322342272,1712956593983,-900.0,0.00049197,30]
[322342273,1712956594009,-500.0,0.00049197,30]
[322342274,1712956594035,-154.37853735,0.00049284,73]
[322342275,1712956594062,-500.0,0.00049315,120]
[322342276,1712956594089,-500.0,0.00049315,120]
[322342277,1712956594116,-500.0,0.00049315,120]
[322342278,1712956594143,-500.0,0.00049315,120]
[322342279,1712956594169,-500.0,0.00049315,120]
[322342280,1712956594196,-1511.53,0.00049315,120]
[322342281,1712956594222,-500.0,0.00049315,120]
[322342282,1712956594249,-2105.21,0.00049315,120]